fUSD/lending_fUSD_20250304
["ID","MTS","AMOUNT","RATE_DAILY","PERIOD"]
[355369342,1741082769942,-251679.01974127,0.000445,120]
[355369343,1741082776837,-500.0,0.00042644,60]
[355369344,1741082776870,-500.0,0.0004374,60]
[355369345,1741082776901,-1748320.98025873,0.000445,120]
[355369346,1741082776931,-14507.98082361,0.00044555,90]
[355369347,1741082776961,-25760.0,0.00044636,117]
[355369348,1741082776991,-2000000.0,0.0004475,120]
[355369349,1741082777020,-194.0,0.0004475,90]
[355369350,1741082777049,-104155.78395702,0.000448,60]
[355369351,1741082777077,-7766.30480564,0.000449,90]
[355369352,1741082777108,-1279.67,0.00044931,120]
[355369353,1741082777139,-100000.0,0.00045,45]
[355369354,1741082777168,-900.0,0.00045,46]
[355369355,1741082777195,-609.0,0.00045,120]
[355369356,1741082777222,-1000.0,0.00045,120]
[355369357,1741082777252,-1500.0,0.00045,120]
[355369358,1741082777279,-50000.0,0.00045,120]
[355369359,1741082777309,-50000.0,0.00045,120]
[355369360,1741082777338,-50000.0,0.00045,120]
[355369361,1741082777367,-4220.02121885,0.00045,120]
[355369362,1741082777397,-838786.25893615,0.00045,120]
[355369363,1741082781431,-150.0,0.00043614,120]
[355369364,1741082781461,-150.0,0.00043614,120]
[355369365,1741082781489,-150.0,0.00043614,120]
[355369366,1741082781517,-150.0,0.00043614,120]
[355369367,1741082781547,-276.20183828,0.00043614,120]
[355369368,1741082781575,-500.0,0.00043614,120]
[355369369,1741082781605,-500.0,0.00043614,120]
[355369370,1741082781633,-500.0,0.00043614,120]
[355369371,1741082781665,-965.39343467,0.00043614,120]
[355369372,1741082781695,-150.0,0.000445,30]
[355369373,1741082781726,-161213.74106385,0.00045,120]
[355369374,1741082781755,-6073.0,0.00045,120]
[355369375,1741082781783,-10000.0,0.00045,120]
[355369376,1741082781813,-1000.03283995,0.00045,120]
[355369377,1741082781841,-7531.68390666,0.00045,120]
[355369378,1741082781870,-200.0,0.00045,120]
[355369379,1741082781897,-2179.19539611,0.00045,120]
[355369380,1741082781927,-2000000.0,0.00045,120]
[355369381,1741082781954,-15022.4526149,0.00045,120]
[355369382,1741082781982,-6324.40507429,0.00045,120]
[355369383,1741082782009,-29483.02,0.00045,120]
[355369384,1741082782036,-2008.0,0.00045,120]
[355369385,1741082782064,-50000.0,0.00045,120]
[355369386,1741082782092,-500.0,0.00045,120]
[355369387,1741082782121,-151.0,0.00045,120]
[355369388,1741082782148,-85949.19733255,0.00045,30]
[355369389,1741082782384,-4000.85,0.00045,120]
[355369390,1741082782413,-3793.58101896,0.00045,120]
[355369391,1741082782442,-151.0,0.00045,120]
[355369392,1741082782471,-150.0,0.00045,120]
[355369393,1741082782502,-2000000.0,0.0004525,120]
[355369394,1741082782533,-1000.0,0.00045479,120]
[355369395,1741082782563,-500.0,0.00045479,120]
[355369396,1741082782592,-743.16,0.00045479,30]
[355369397,1741082782620,-839.29887981,0.000455,120]
[355369398,1741082782649,-607694.78659997,0.000455,120]
[355369399,1741082786931,-1392305.21340003,0.000455,120]
[355369400,1741082786959,-5498.16026573,0.000456,120]
[355369401,1741082786988,-331.15031598,0.000457,120]
[355369402,1741082787020,-2000000.0,0.0004575,120]
[355369403,1741082787055,-1000.0,0.00045753,120]
[355369404,1741082787084,-1930.40783,0.00045888,30]
[355369405,1741082787114,-12000.0,0.000459,120]
[355369406,1741082787143,-1000.0,0.00046,30]
[355369407,1741082787172,-3049.50014941,0.00046,30]
[355369408,1741082787202,-500.0,0.00046,120]
[355369409,1741082787232,-900.0,0.00046,47]
[355369410,1741082787261,-15061.99364624,0.00046,120]
[355369411,1741082787293,-1000000.0,0.00046,120]
[355369412,1741082787327,-566423.57439261,0.00046,120]
[355369413,1741082799417,150.0,9.945e-05,7]
[355369414,1741082807199,-7405.81,0.000445,120]
[355369415,1741082807228,-211.18,0.000445,120]
[355369416,1741082807258,-228.41,0.00045,120]
[355369417,1741082807288,-1433576.42560739,0.00046,120]
[355369418,1741082807317,-2000.0,0.00046,120]
[355369419,1741082807344,-4000.0,0.00046,60]
[355369420,1741082807371,-150.0,0.00046,120]
[355369421,1741082807400,-15231.31994982,0.00046,120]
[355369422,1741082807428,-10953.80752141,0.00046,120]
[355369423,1741082807457,-150.0,0.00046,30]
[355369424,1741082807486,-1000.0,0.00046027,120]
[355369425,1741082807516,-1279.67,0.00046027,120]
[355369426,1741082807545,-1930.40783,0.00046088,30]
[355369427,1741082807577,-2000000.0,0.0004625,120]
[355369428,1741082807607,-1930.40783,0.00046288,30]
[355369429,1741082807639,-1000.0,0.00046301,120]
[355369430,1741082807669,-344.5,0.00046301,30]
[355369431,1741082807698,-688.94,0.00046301,30]
[355369432,1741082807728,-5000.0,0.00046426,60]
[355369433,1741082807756,-1555.48,0.00046438,30]
[355369434,1741082807785,-1930.40783,0.00046488,30]
[355369435,1741082807817,-1509433.23343138,0.000465,120]
[355369436,1741082811190,-4438.17,0.00041,30]
[355369437,1741082811224,-490566.76656862,0.000465,120]
[355369438,1741082811252,-3502.33,0.0004653,120]
[355369439,1741082811280,-27603.0,0.00046545,117]
[355369440,1741082811308,-14507.98082361,0.00046555,90]
[355369441,1741082811336,-500000.0,0.0004657,30]
[355369442,1741082811365,-3959381.75260777,0.0004657,30]
[355369443,1741082936558,-197.71367597,0.00010375,2]
[355369444,1741082936589,-6651.29122274,0.00010375,2]
[355369445,1741082936657,-2109.60272462,0.00010375,2]
[355369446,1741082961081,-300.0,0.00010374,2]
[355369447,1741082961122,-6728.17705118,0.00010375,2]
[355369448,1741082961173,-1316.28255739,0.00010375,2]
[355369449,1741082986743,-7195.06624335,0.00010375,2]
[355369450,1741082986789,-5277.91890703,0.00010375,2]
[355369451,1741082999718,-25263.21,0.00010375,2]
[355369452,1741083011110,-2894.81372333,0.00010375,2]
[355369454,1741083016746,156.9,9.943e-05,2]
[355369455,1741083016979,156.9,0.00010007,2]
[355369456,1741083017301,156.9,0.00010071,2]
[355369457,1741083017473,156.9,0.00010135,2]
[355369458,1741083017572,156.9,0.00010199,2]
[355369459,1741083032357,-156.9,0.00010263,2]
[355369460,1741083032366,-156.9,0.00010327,2]
[355369461,1741083032374,-150.0,0.0001037,2]
[355369462,1741083032383,-4650.22949336,0.00010375,2]
[355369463,1741083032392,-16386.6870825,0.00010375,2]
[355369464,1741083032404,-604.07127321,0.00010375,2]
[355369465,1741083032420,-7698.51013569,0.00010375,2]
[355369466,1741083032429,-156.9,0.00010391,2]
[355369467,1741083032439,-150.0,0.00010425,2]
[355369468,1741083032448,-156.9,0.00010454,2]
[355369469,1741083032457,-150.0,0.00010474,2]
[355369470,1741083032466,-300.0,0.00010474,2]
[355369471,1741083032475,-11307.01568908,0.00010475,2]
[355369472,1741083032487,-772.1419729,0.00010475,2]
[355369473,1741083032497,-1102.14874176,0.00010475,2]
[355369474,1741083032537,-1275.62211806,0.00010475,2]
[355369475,1741083032652,-765.41038016,0.00010475,2]
[355369476,1741083032664,-2044.17048353,0.00010475,2]
[355369477,1741083032712,-300.0,0.00010475,2]
[355369478,1741083032724,-6834.64085429,0.00010475,2]
[355369479,1741083032736,-2614.97457783,0.00010475,2]
[355369480,1741083032748,-3859.27584048,0.00010475,2]
[355369481,1741083032759,-3749.82863,0.00010475,2]
[355369482,1741083032773,-2427.49534836,0.00010475,2]
[355369483,1741083032786,-1832.1416959,0.00010475,2]
[355369484,1741083032797,-706.29087696,0.00010475,2]
[355369485,1741083032835,-4956.64192948,0.00010475,2]
[355369494,1741083038285,-1433.91078519,0.00010475,2]
[355369495,1741083038347,-4168.97028572,0.00010475,2]
[355369496,1741083038357,-19455.33109288,0.00010475,2]
[355369497,1741083038368,-453.30570109,0.00010475,2]
[355369498,1741083038405,-600.45761951,0.00010475,2]
[355369499,1741083038467,-21589.20636542,0.00010475,2]
[355369500,1741083038476,-530.63,0.00010475,2]
[355369501,1741083038486,-150.0,0.00010486,2]
[355369502,1741083038495,-156.9,0.00010518,2]
[355369503,1741083038503,-156.9,0.00010582,2]
[355369504,1741083038513,-250.0,0.00010629,2]
[355369505,1741083038523,-156.9,0.00010646,2]
[355369506,1741083038536,-156.9,0.0001071,2]
[355369507,1741083038546,-230.3063292,0.00010774,2]
[355369508,1741083038555,-156.9,0.00010774,2]
[355369509,1741083038564,-1200.0,0.000108,3]
[355369510,1741083038572,-156.9,0.00010838,2]
[355369511,1741083038582,-1111.4355,0.00010888,2]
[355369512,1741083038591,-622.28883849,0.00010888,2]
[355369513,1741083038600,-313.38,0.00010888,2]
[355369514,1741083038610,-4082.7161,0.00010888,2]
[355369515,1741083038619,-150.99,0.00010888,2]
[355369516,1741083038628,-151.4190185,0.00010889,2]
[355369518,1741083038637,-644.4126,0.0001089,2]
[355369520,1741083038646,-5513.5822,0.0001089,2]
[355369522,1741083038655,-1393.0159,0.0001089,2]
[355369524,1741083038664,-500.0,0.0001089,2]
[355369526,1741083038673,-1108.8356,0.00010891,2]
[355369528,1741083038682,-2400.0,0.000109,3]
[355369530,1741083038691,-158.75222907,0.000109,2]
[355369532,1741083038700,-1312.77,0.000109,2]
[355369534,1741083038709,-383.76,0.000109,2]
[355369536,1741083038718,-159.56,0.00010902,2]
[355369538,1741083038727,-200.0,0.00010959,2]
[355369540,1741083038736,-1069.82313139,0.00010959,2]
[355369542,1741083038745,-560.53698294,0.00010979,2]
[355369544,1741083038754,-5850.12,0.00010987,2]
[355369546,1741083038763,-2243.39,0.00010987,2]
[355369547,1741083038774,-530.43,0.00010987,2]
[355369549,1741083038783,-1661.4,0.00010987,2]
[355369551,1741083038792,-2331.26,0.00010987,2]
[355369553,1741083038801,-226.1040214,0.00010987,2]
[355369578,1741083039211,-920.4959786,0.00010987,2]
[355369580,1741083039221,-107.3040214,0.00010987,2]
[355369712,1741083040321,-3398.7959786,0.00010987,2]
[355369715,1741083040331,-2524.12,0.00010987,2]
[355369717,1741083040341,-529.78402141,0.00010987,2]
[355369719,1741083040353,-961.89387195,0.00010987,2]
[355369764,1741083040766,-172.7297469,0.00010774,2]
[355369766,1741083040777,-2034.74210664,0.00010987,2]
[355369768,1741083040786,-6259.56,0.00010987,2]
[355369770,1741083040795,-500.0,0.00010987,2]
[355369772,1741083040805,-2682.21,0.00010987,2]
[355369774,1741083040814,-11401.87,0.00010987,2]
[355369776,1741083040823,-1577.11,0.00010987,2]
[355369778,1741083040832,-2945.26,0.00010987,2]
[355369780,1741083040841,-1259.18,0.00010987,2]
[355369782,1741083040850,-1250.08,0.00010987,2]
[355369784,1741083040859,-500.57950472,0.00010987,2]
[355369786,1741083040868,-554.62682087,0.00010987,2]
[355369788,1741083040877,-953.81,0.00010987,2]
[355369790,1741083040886,-1447.05,0.00010987,2]
[355369792,1741083040895,-1954.84,0.00010987,2]
[355369794,1741083040902,-2098.88,0.00010987,2]
[355369796,1741083040910,-2389.05,0.00010987,2]
[355369798,1741083040918,-1586.73,0.00010987,2]
[355369800,1741083040927,-707.59,0.00010987,2]
[355369802,1741083040935,-588.33,0.00010987,2]
[355369804,1741083040943,-2079.44,0.00010987,2]
[355369806,1741083040953,-2508.49,0.00010987,2]
[355369808,1741083040962,-4437.92,0.00010987,2]
[355369810,1741083040971,-1337.85,0.00010987,2]
[355369812,1741083040980,-1446.43,0.00010987,2]
[355369814,1741083040990,-1939.13,0.00010987,2]
[355369816,1741083040999,-2638.94,0.00010987,2]
[355369818,1741083041008,-670.82,0.00010987,2]
[355369819,1741083041017,-2360.17,0.00010987,2]
[355369821,1741083041028,-500.0,0.00010987,2]
[355369823,1741083041038,-4795.81,0.00010987,2]
[355369825,1741083041047,-1761.15,0.00010987,2]
[355369827,1741083041057,-1121.65,0.00010987,2]
[355369829,1741083041066,-521.31,0.00010987,2]
[355369831,1741083041076,-1313.7,0.00010987,2]
[355369833,1741083041085,-2876.44,0.00010987,2]
[355369835,1741083041095,-1674.9,0.00010987,2]
[355369837,1741083041105,-2509.56,0.00010987,2]
[355369839,1741083041115,-799.41,0.00010987,2]
[355369841,1741083041124,-713.58,0.00010987,2]
[355369843,1741083041134,-3706.0,0.00010987,2]
[355369845,1741083041143,-1118.4,0.00010987,2]
[355369847,1741083041153,-971.99,0.00010987,2]
[355369849,1741083041162,-856.19,0.00010987,2]
[355369851,1741083041172,-1901.34,0.00010987,2]
[355369853,1741083041181,-1478.83,0.00010987,2]
[355369855,1741083041190,-2180.93,0.00010987,2]
[355369858,1741083041200,-1831.43,0.00010988,2]
[355369860,1741083041209,-252.35804472,0.00010988,2]
[355369861,1741083041218,-500.0,0.00010988,2]
[355369863,1741083041227,-500.0,0.00010988,2]
[355369865,1741083041236,-262.69730231,0.00010988,2]
[355369867,1741083041245,-907.5,0.00010988,2]
[355369869,1741083041254,-1082.94,0.00010988,2]
[355369871,1741083041264,-558.53,0.00010988,2]
[355369873,1741083041274,-500.0,0.00010988,2]
[355369875,1741083041284,-500.0,0.00010988,2]
[355369877,1741083041294,-536.73,0.00010988,2]
[355369879,1741083041303,-513.49113641,0.00010988,2]
[355369881,1741083041312,-500.0,0.00010988,2]
[355369883,1741083041322,-650.12,0.00010988,2]
[355369885,1741083041332,-1299.83,0.00010988,2]
[355369887,1741083041341,-500.0,0.00010988,2]
[355369889,1741083041351,-500.0,0.00010988,2]
[355369891,1741083041360,-928.61,0.00010988,2]
[355369893,1741083041369,-500.0,0.00010988,2]
[355369895,1741083041378,-1026.59,0.00010988,2]
[355369897,1741083041387,-887.51,0.00010988,2]
[355369899,1741083041396,-500.0,0.00010988,2]
[355369901,1741083041406,-1209.57,0.00010988,2]
[355369903,1741083041415,-500.0,0.00010988,2]
[355369905,1741083041424,-791.64,0.00010988,2]
[355369907,1741083041432,-318.96393279,0.00010988,2]
[355369909,1741083041442,-679.64,0.00010988,2]
[355369911,1741083041451,-828.1,0.00010988,2]
[355369913,1741083041460,-678.5,0.00010988,2]
[355369915,1741083041469,-648.78,0.00010988,2]
[355369917,1741083041478,-500.0,0.00010988,2]
[355369919,1741083041488,-500.0,0.00010988,2]
[355369921,1741083041497,-833.93,0.00010988,2]
[355369945,1741083041507,-529.24305732,0.00010988,2]
[355369948,1741083041735,-724.34,0.00010988,2]
[355369949,1741083041745,-1172.73,0.00010988,2]
[355369952,1741083041754,-1101.4,0.00010988,2]
[355369954,1741083041764,-509.2,0.00010988,2]
[355369955,1741083041773,-500.0,0.00010988,2]
[355369958,1741083041783,-500.0,0.00010988,2]
[355369960,1741083041793,-649.37,0.00010988,2]
[355369962,1741083041802,-693.39,0.00010988,2]
[355369964,1741083041812,-263.49654531,0.00010988,2]
[355369966,1741083041822,-500.0,0.00010988,2]
[355369968,1741083041831,-500.0,0.00010988,2]
[355369970,1741083041841,-708.99,0.00010988,2]
[355369972,1741083041850,-500.0,0.00010988,2]
[355369974,1741083041859,-500.0,0.00010988,2]
[355369976,1741083041868,-500.0,0.00010988,2]
[355369978,1741083041877,-819.7,0.00010988,2]
[355369980,1741083041887,-735.29,0.00010988,2]
[355369982,1741083041895,-500.0,0.00010988,2]
[355369984,1741083041905,-500.0,0.00010988,2]
[355369986,1741083041915,-500.0,0.00010988,2]
[355369988,1741083041923,-795.13,0.00010988,2]
[355369990,1741083041933,-500.0,0.00010988,2]
[355369991,1741083041942,-500.0,0.00010988,2]
[355369993,1741083041951,-500.0,0.00010988,2]
[355369995,1741083041960,-738.11,0.00010988,2]
[355369997,1741083041969,-500.0,0.00010988,2]
[355369999,1741083041978,-500.0,0.00010988,2]
[355370001,1741083041987,-500.0,0.00010988,2]
[355370003,1741083041997,-505.59,0.00010988,2]
[355370005,1741083042006,-500.0,0.00010988,2]
[355370007,1741083042015,-500.0,0.00010988,2]
[355370009,1741083042025,-1311.43,0.00010988,2]
[355370011,1741083042034,-544.21078187,0.00010988,2]
[355370013,1741083042044,-207.44998692,0.00010988,2]
[355370015,1741083042053,-337.93183307,0.00010988,2]
[355370017,1741083042063,-506.83401266,0.00010988,2]
[355370019,1741083042072,-500.0,0.00010988,2]
[355370021,1741083042081,-500.0,0.00010988,2]
[355370023,1741083042091,-818.55,0.00010988,2]
[355370025,1741083042100,-561.57179289,0.00010988,2]
[355370027,1741083042109,-664.49,0.00010988,2]
[355370029,1741083042119,-500.0,0.00010988,2]
[355370031,1741083042128,-1184.57,0.00010988,2]
[355370033,1741083042137,-639.19,0.00010988,2]
[355370035,1741083042146,-500.0,0.00010988,2]
[355370037,1741083042158,-500.0,0.00010988,2]
[355370039,1741083042167,-500.0,0.00010988,2]
[355370041,1741083042176,-1726.85,0.00010988,2]
[355370043,1741083042185,-500.0,0.00010988,2]
[355370045,1741083042195,-500.0,0.00010988,2]
[355370047,1741083042204,-518.22,0.00010988,2]
[355370049,1741083042213,-657.72,0.00010988,2]
[355370051,1741083042222,-725.26,0.00010988,2]
[355370053,1741083042231,-537.0,0.00010988,2]
[355370055,1741083042241,-2128.9,0.00010988,2]
[355370057,1741083042250,-500.0,0.00010988,2]
[355370059,1741083042259,-682.42,0.00010988,2]
[355370061,1741083042269,-1644.75,0.00010988,2]
[355370063,1741083042280,-500.0,0.00010988,2]
[355370065,1741083042290,-500.0,0.00010988,2]
[355370067,1741083042299,-500.0,0.00010988,2]
[355370069,1741083042308,-702.34,0.00010988,2]
[355370071,1741083042317,-754.47,0.00010988,2]
[355370073,1741083042326,-500.0,0.00010988,2]
[355370075,1741083042335,-500.0,0.00010988,2]
[355370077,1741083042345,-500.0,0.00010988,2]
[355370079,1741083042354,-1394.88,0.00010988,2]
[355370081,1741083042363,-631.83580844,0.00010988,2]
[355370083,1741083042373,-575.25919405,0.00010988,2]
[355370085,1741083042382,-493.56703356,0.00010988,2]
[355370087,1741083042391,-500.0,0.00010988,2]
[355370089,1741083042400,-603.97,0.00010988,2]
[355370091,1741083042408,-602.35,0.00010988,2]
[355370093,1741083042417,-1934.88,0.00010988,2]
[355370095,1741083042426,-1599.89,0.00010988,2]
[355370097,1741083042435,-503.7220245,0.00010988,2]
[355370099,1741083042444,-1207.55,0.00010988,2]
[355370100,1741083042452,-493.83120734,0.00010988,2]
[355370101,1741083042461,-500.0,0.00010988,2]
[355370102,1741083042470,-500.0,0.00010988,2]
[355370103,1741083042479,-506.3551082,0.00010988,2]
[355370104,1741083042488,-500.0,0.00010988,2]
[355370105,1741083042497,-680.01,0.00010988,2]
[355370106,1741083042506,-330.80703194,0.00010988,2]
[355370107,1741083042514,-506.37529216,0.00010988,2]
[355370108,1741083042523,-1308.66,0.00010988,2]
[355370109,1741083042537,-648.11141981,0.00010988,2]
[355370110,1741083042545,-2166.65,0.00010988,2]
[355370111,1741083042555,-507.42096783,0.00010988,2]
[355370112,1741083042564,-537.97981269,0.00010988,2]
[355370113,1741083042574,-1207.12,0.00010988,2]
[355370115,1741083042583,-508.44116989,0.00010988,2]
[355370117,1741083042593,-500.0,0.00010988,2]
[355370119,1741083042603,-4774.78,0.00010988,2]
[355370121,1741083042615,-500.0,0.00010988,2]
[355370123,1741083042624,-518.17269144,0.00010988,2]
[355370125,1741083042633,-524.94178157,0.00010988,2]
[355370127,1741083042642,-502.26339451,0.00010988,2]
[355370129,1741083042652,-507.16777929,0.00010988,2]
[355370131,1741083042661,-500.0,0.00010988,2]
[355370133,1741083042672,-517.9139388,0.00010988,2]
[355370135,1741083042681,-500.0,0.00010988,2]
[355370137,1741083042691,-798.23,0.00010988,2]
[355370139,1741083042702,-1981.13,0.00010988,2]
[355370141,1741083042712,-1493.99,0.00010988,2]
[355370143,1741083042721,-500.0,0.00010988,2]
[355370145,1741083042730,-1142.07,0.00010988,2]
[355370147,1741083042740,-700.0,0.00010988,2]
[355370149,1741083042749,-658.02,0.00010988,2]
[355370151,1741083042759,-1048.65,0.00010988,2]
[355370153,1741083042768,-506.9253636,0.00010988,2]
[355370155,1741083042778,-505.78885978,0.00010988,2]
[355370157,1741083042787,-2136.71,0.00010988,2]
[355370159,1741083042796,-503.51481657,0.00010988,2]
[355370161,1741083042805,-1553.16,0.00010988,2]
[355370163,1741083042814,-264.99695451,0.00010988,2]
[355370164,1741083042823,-2676.91,0.00010988,2]
[355370166,1741083042833,-503.46,0.00010988,2]
[355370168,1741083042842,-508.41819442,0.00010988,2]
[355370170,1741083042852,-577.18563778,0.00010988,2]
[355370172,1741083042861,-2765.33,0.00010988,2]
[355370175,1741083042871,-500.0,0.00010988,2]
[355370177,1741083042880,-500.0,0.00010988,2]
[355370179,1741083042890,-1825.92,0.00010988,2]
[355370181,1741083042899,-929.89,0.00010988,2]
[355370183,1741083042907,-502.25310842,0.00010988,2]
[355370185,1741083042914,-509.15396479,0.00010988,2]
[355370187,1741083042922,-500.0,0.00010988,2]
[355370189,1741083042930,-748.9,0.00010988,2]
[355370190,1741083042936,-500.0,0.00010988,2]
[355370192,1741083042943,-1715.25,0.00010988,2]
[355370194,1741083042953,-500.0,0.00010988,2]
[355370196,1741083042962,-3224.91,0.00010988,2]
[355370198,1741083042971,-2564.49,0.00010988,2]
[355370200,1741083042980,-502.68651455,0.00010988,2]
[355370202,1741083042989,-500.0,0.00010988,2]
[355370204,1741083042999,-1055.43,0.00010988,2]
[355370206,1741083043009,-3450.54,0.00010988,2]
[355370208,1741083043019,-500.0,0.00010988,2]
[355370210,1741083043031,-232.87331396,0.00010988,2]
[355370212,1741083043040,-642.13,0.00010988,2]
[355370214,1741083043049,-500.0,0.00010988,2]
[355370216,1741083043059,-500.0,0.00010988,2]
[355370218,1741083043068,-500.0,0.00010988,2]
[355370220,1741083043077,-8185.71,0.00010988,2]
[355370222,1741083043087,-500.0,0.00010988,2]
[355370224,1741083043096,-500.0,0.00010988,2]
[355370226,1741083043105,-500.0,0.00010988,2]
[355370228,1741083043114,-505.10101372,0.00010988,2]
[355370230,1741083043123,-951.94,0.00010988,2]
[355370232,1741083043133,-2752.08,0.00010988,2]
[355370234,1741083043143,-500.0,0.00010988,2]
[355370236,1741083043153,-2197.02,0.00010988,2]
[355370238,1741083043162,-504.29143847,0.00010988,2]
[355370240,1741083043172,-500.0,0.00010988,2]
[355370242,1741083043181,-1490.48,0.00010988,2]
[355370244,1741083043190,-829.85,0.00010988,2]
[355370246,1741083043199,-1880.54,0.00010988,2]
[355370248,1741083043208,-500.0,0.00010988,2]
[355370251,1741083043217,-1762.5,0.00010988,2]
[355370253,1741083043226,-1169.53,0.00010988,2]
[355370255,1741083043236,-773.33,0.00010988,2]
[355370257,1741083043245,-686.69,0.00010988,2]
[355370259,1741083043254,-500.0,0.00010988,2]
[355370261,1741083043264,-996.49,0.00010988,2]
[355370263,1741083043273,-500.0,0.00010988,2]
[355370266,1741083043283,-500.0,0.00010988,2]
[355370269,1741083043293,-2942.53,0.00010988,2]
[355370272,1741083043302,-582.7,0.00010988,2]
[355370274,1741083043311,-919.74,0.00010988,2]
[355370276,1741083043320,-500.0,0.00010988,2]
[355370278,1741083043330,-2389.2,0.00010988,2]
[355370280,1741083043339,-887.08,0.00010988,2]
[355370282,1741083043348,-500.0,0.00010988,2]
[355370284,1741083043357,-788.25,0.00010988,2]
[355370287,1741083043367,-506.67,0.00010988,2]
[355370289,1741083043376,-1062.07,0.00010988,2]
[355370291,1741083043385,-1315.83,0.00010988,2]
[355370293,1741083043394,-2073.02,0.00010988,2]
[355370295,1741083043403,-523.34158123,0.00010988,2]
[355370297,1741083043412,-767.3,0.00010988,2]
[355370299,1741083043422,-500.0,0.00010988,2]
[355370301,1741083043431,-518.5277648,0.00010988,2]
[355370303,1741083043440,-1027.76,0.00010988,2]
[355370305,1741083043450,-500.0,0.00010988,2]
[355370307,1741083043459,-554.82,0.00010988,2]
[355370309,1741083043468,-2764.59,0.00010988,2]
[355370311,1741083043478,-1244.41,0.00010988,2]
[355370313,1741083043487,-500.0,0.00010988,2]
[355370315,1741083043496,-2255.56,0.00010988,2]
[355370317,1741083043506,-1965.5,0.00010988,2]
[355370319,1741083043515,-612.52,0.00010988,2]
[355370321,1741083043524,-512.99816861,0.00010988,2]
[355370323,1741083043537,-1696.12,0.00010988,2]
[355370325,1741083043548,-502.22472865,0.00010988,2]
[355370327,1741083043557,-931.19,0.00010988,2]
[355370329,1741083043567,-500.0,0.00010988,2]
[355370331,1741083043576,-500.0,0.00010988,2]
[355370333,1741083043586,-702.29,0.00010988,2]
[355370335,1741083043595,-3579.25,0.00010988,2]
[355370337,1741083043606,-500.0,0.00010988,2]
[355370339,1741083043616,-500.0,0.00010988,2]
[355370341,1741083043625,-1182.41,0.00010988,2]
[355370343,1741083043635,-2056.91,0.00010988,2]
[355370345,1741083043644,-500.0,0.00010988,2]
[355370347,1741083043653,-1546.97,0.00010988,2]
[355370349,1741083043663,-226.93503587,0.00010988,2]
[355370351,1741083043672,-554.44,0.00010988,2]
[355370353,1741083043681,-500.0,0.00010988,2]
[355370355,1741083043691,-521.10830479,0.00010988,2]
[355370357,1741083043702,-500.0,0.00010988,2]
[355370359,1741083043715,-1336.18,0.00010988,2]
[355370361,1741083043724,-956.07,0.00010988,2]
[355370363,1741083043734,-3391.39,0.00010988,2]
[355370365,1741083043743,-22250.1,0.00010988,2]
[355370367,1741083043752,-500.0,0.00010988,2]
[355370369,1741083043761,-500.0,0.00010988,2]
[355370371,1741083043771,-2262.60149401,0.00010988,2]
[355370374,1741083043788,-2826.50850599,0.00010988,2]
[355370376,1741083043797,-1825.45,0.00010988,2]
[355370378,1741083043806,-500.0,0.00010989,2]
[355370380,1741083043816,-546.98801773,0.00010989,2]
[355370382,1741083043825,-500.0,0.00010989,2]
[355370384,1741083043835,-500.0,0.00010989,2]
[355370386,1741083043844,-521.07916298,0.00010989,2]
[355370388,1741083043853,-2549.57,0.00010989,2]
[355370390,1741083043863,-4153.33,0.00010989,2]
[355370392,1741083043872,-28166.62,0.00010989,2]